bitfinex/quotes_BTCUSD_20250618
["timestamp","ask_amount","ask_price","bid_price","bid_amount"]
[1750230288568,0.40195186,105030.0,105020.0,0.24004779]
[1750230288787,0.41147276,105030.0,105020.0,0.24004779]
[1750230289920,0.42099375,105030.0,105020.0,0.24004779]
[1750230290773,0.57635375,105030.0,105020.0,0.24004779]
[1750230292330,0.56683276,105030.0,105020.0,0.24004779]
[1750230292584,0.55731186,105030.0,105020.0,0.24004779]
[1750230293672,0.54779105,105030.0,105020.0,0.24004779]
[1750230293933,0.54783069,105030.0,105020.0,0.25788138]
[1750230294161,0.34108988,105030.0,105020.0,0.43146399]
[1750230298570,0.34108988,105030.0,105020.0,0.58686399]
[1750230298786,0.34108988,105030.0,105020.0,0.58685732]
[1750230299233,0.34108988,105030.0,105020.0,0.43145732]
[1750230299462,0.41821188,105030.0,105020.0,0.62721732]
[1750230299688,0.34108988,105030.0,105020.0,0.62721732]
[1750230299924,0.34108988,105030.0,105020.0,0.43145732]
[1750230300190,0.34108988,105030.0,105020.0,0.6093504]
[1750230300444,0.34108988,105030.0,105020.0,0.62717748]
[1750230300706,0.39673231,105030.0,105020.0,0.47169748]
[1750230300921,0.34108988,105030.0,105020.0,0.5779504]
[1750230302027,0.34108988,105030.0,105020.0,0.6088504]
[1750230303061,0.34108988,105030.0,105020.0,0.5779504]
[1750230304322,0.34108988,105030.0,105020.0,0.6097504]
[1750230310527,0.00108988,105030.0,105020.0,0.9008504]
[1750230311022,0.00108988,105030.0,105020.0,1.11625289]
[1750230311260,0.00108988,105030.0,105020.0,1.16625289]
[1750230311733,8.988e-05,105030.0,105020.0,1.16425289]
[1750230311972,8.988e-05,105030.0,105020.0,0.9488504]
[1750230312191,0.00208988,105030.0,105020.0,0.9578504]
[1750230319476,0.00208988,105030.0,105020.0,0.7121304]
[1750230319700,0.00208988,105030.0,105020.0,0.9080104]
[1750230320602,0.00208988,105030.0,105020.0,0.60240955]
[1750230321045,0.00208988,105030.0,105020.0,0.6169504]
[1750230322123,0.00208988,105030.0,105020.0,0.6171904]
[1750230322570,0.00212988,105030.0,105020.0,0.6171904]
[1750230323223,0.73595771,105040.0,105030.0,0.46898394]
[1750230323471,0.73595771,105040.0,105030.0,0.5652257]
[1750230324627,0.73695771,105040.0,105030.0,0.5672257]
[1750230324844,0.70475771,105040.0,105030.0,0.5702257]
[1750230326746,0.70475771,105040.0,105030.0,0.7664257]
[1750230327706,0.70479771,105040.0,105030.0,0.7664257]
[1750230329282,0.74521707,105040.0,105030.0,0.7664257]
[1750230329952,0.78563652,105040.0,105030.0,0.5702257]
[1750230330204,0.79515615,105040.0,105030.0,0.7664257]
[1750230330654,0.77611707,105040.0,105030.0,0.7664257]
[1750230330884,0.73569771,105040.0,105030.0,0.7664257]
[1750230331135,0.74521707,105040.0,105030.0,0.7664257]
[1750230332070,0.75473661,105040.0,105030.0,0.7664257]
[1750230332503,0.75473652,105040.0,105030.0,0.7664257]
[1750230333020,0.76425615,105040.0,105030.0,0.7664257]
[1750230333243,0.75473652,105040.0,105030.0,0.7664257]
[1750230334389,0.73569771,105040.0,105030.0,0.7664257]
[1750230334902,0.74521707,105040.0,105030.0,0.7664257]
[1750230335100,0.73569771,105040.0,105030.0,0.7664257]
[1750230335330,0.74521707,105040.0,105030.0,0.7664257]
[1750230336061,0.73569771,105040.0,105030.0,0.7664257]
[1750230336531,0.74521707,105040.0,105030.0,0.7664257]
[1750230337878,0.78763652,105040.0,105030.0,0.5702257]
[1750230338100,0.99707989,105040.0,105030.0,0.62524691]
[1750230338312,0.99707989,105040.0,105030.0,0.78084691]
[1750230338529,0.99707989,105040.0,105030.0,0.58476691]
[1750230338743,0.99707989,105040.0,105030.0,0.78084691]
[1750230339465,0.99707989,105040.0,105030.0,0.58476691]
[1750230339681,1.06386521,105040.0,105030.0,0.04548]
[1750230339906,1.12412136,105040.0,105030.0,0.04548]
[1750230340584,5.97369436,105040.0,105030.0,0.04548]
[1750230341736,5.97169436,105040.0,105030.0,0.04048]
[1750230341962,5.97469436,105040.0,105030.0,0.04148]
[1750230342662,6.07084358,105040.0,105030.0,0.04148]
[1750230343065,6.07184358,105040.0,105030.0,0.04148]
[1750230343373,5.97569436,105040.0,105030.0,0.04148]
[1750230343586,5.97569436,105040.0,105030.0,0.05100108]
[1750230344216,5.97569436,105040.0,105030.0,0.04148]
[1750230345297,5.97569436,105040.0,105030.0,0.05100108]
[1750230346671,5.97569436,105040.0,105030.0,0.24142286]
[1750230346875,5.97569436,105040.0,105030.0,0.25094385]
[1750230347511,5.97569436,105040.0,105030.0,0.04148]
[1750230349000,5.97569436,105040.0,105030.0,0.25094376]
[1750230349200,5.97569436,105040.0,105030.0,0.26046457]
[1750230349406,5.97569436,105040.0,105030.0,0.26998529]
[1750230350277,5.97569436,105040.0,105030.0,0.26046475]
[1750230350720,5.96617436,105040.0,105030.0,0.04148]
[1750230350958,5.96617436,105040.0,105030.0,0.06052207]
[1750230351133,5.96617436,105040.0,105030.0,0.05100108]
[1750230352368,5.96617436,105040.0,105030.0,0.06052207]
[1750230354849,5.96617436,105040.0,105030.0,0.25094385]
[1750230355054,5.82009381,105040.0,105030.0,0.26046475]
[1750230355263,5.98505399,105040.0,105030.0,0.26998538]
[1750230355476,5.99457399,105040.0,105030.0,0.26998538]
[1750230355684,6.00409371,105040.0,105030.0,0.26998538]
[1750230355901,6.00409371,105040.0,105030.0,0.27950592]
[1750230356360,6.00409371,105040.0,105030.0,0.26998538]
[1750230356570,5.99457426,105040.0,105030.0,0.22950538]
[1750230356777,5.99457426,105040.0,105030.0,0.26978538]
[1750230357604,5.98505454,105040.0,105030.0,0.25074385]
[1750230357814,6.06216358,105040.0,105030.0,0.04128]
[1750230359100,10.22045067,105040.0,105030.0,0.04128]
[1750230360758,10.21956766,105040.0,105030.0,0.04128]
[1750230361381,10.12341844,105040.0,105030.0,0.04128]
[1750230361597,10.12341844,105040.0,105030.0,0.05080108]
[1750230362018,10.12341844,105040.0,105030.0,0.25074385]
[1750230362264,10.12341844,105040.0,105030.0,0.04128]
[1750230363526,10.12341844,105040.0,105030.0,0.001]
[1750230363770,10.21956766,105040.0,105030.0,0.001]
[1750230364674,9.58680868,105030.0,105020.0,0.00047275]
[1750230364890,9.76492277,105030.0,105020.0,0.00047275]
[1750230365789,9.79453177,105030.0,105020.0,0.00047275]
[1750230366052,9.79553177,105030.0,105020.0,0.00147275]
[1750230366265,9.88968099,105030.0,105020.0,0.00047275]
[1750230366688,9.89268099,105030.0,105020.0,0.00147275]
[1750230367233,9.89568099,105030.0,105020.0,0.00247275]
[1750230372603,9.89568099,105030.0,105020.0,0.02029087]
[1750230372841,9.89568099,105030.0,105020.0,0.00247275]
[1750230374511,0.58030321,105010.0,105000.0,0.23326886]
[1750230374770,0.8160791,105010.0,105000.0,0.27354886]
[1750230375808,0.8160791,105010.0,105000.0,0.27454886]
[1750230376027,0.8170791,105010.0,105000.0,0.28707266]
[1750230376291,0.7862791,105010.0,105000.0,0.28707266]
[1750230376933,0.7862791,105010.0,105000.0,0.27754886]
[1750230377388,0.81556624,105010.0,105000.0,0.27754886]
[1750230377633,4.95125924,105010.0,105000.0,0.27754886]
[1750230377856,9.86243224,105010.0,105000.0,0.23726886]
[1750230378113,9.86243224,105010.0,105000.0,0.27754886]
[1750230378792,9.83133224,105010.0,105000.0,0.27754886]
[1750230379693,10.03692891,105010.0,105000.0,0.24617095]
[1750230379933,10.0088303,105010.0,105000.0,0.23726886]
[1750230380632,10.0088303,105010.0,105000.0,0.23194886]
[1750230381171,10.0088303,105010.0,105000.0,0.00365321]
[1750230381374,9.56700912,104990.0,104980.0,0.0053]
[1750230381646,0.02857858,104970.0,104960.0,0.28174295]
[1750230381869,0.22863527,104970.0,104960.0,0.41764247]
[1750230382064,0.04763118,104970.0,104960.0,0.33092787]
[1750230382343,0.20958359,104970.0,104960.0,0.28186077]
[1750230382557,0.20005715,104970.0,104960.0,0.2913882]
[1750230382783,0.29224659,104970.0,104960.0,0.30091545]
[1750230383032,0.29424659,104970.0,104960.0,0.04150465]
[1750230383243,0.35905787,104940.0,104930.0,0.46941634]
[1750230383469,0.34952861,104940.0,104930.0,0.53161634]
[1750230383717,0.34952852,104940.0,104930.0,0.53161634]
[1750230384003,0.34,104940.0,104930.0,0.53161634]
[1750230384216,0.55912972,104960.0,104950.0,0.20009518]
[1750230384440,0.34952771,104950.0,104940.0,0.28375533]
[1750230384659,0.35905569,104950.0,104940.0,0.28375533]
[1750230384892,0.3590556,104950.0,104940.0,0.28375533]
[1750230385366,0.39716965,104950.0,104940.0,0.28375533]
[1750230385614,0.39716974,104950.0,104940.0,0.28375533]
[1750230385848,0.67143604,104950.0,104940.0,0.22376958]
[1750230386063,0.00952871,104940.0,104930.0,0.68589859]
[1750230386289,0.03811519,104940.0,104930.0,0.40502911]
[1750230386487,0.03811519,104940.0,104930.0,0.44542911]
[1750230386745,0.22870092,104940.0,104930.0,0.25241698]
[1750230386970,0.1247358,104940.0,104930.0,0.23847611]
[1750230387214,0.02858603,104940.0,104930.0,0.23847611]
[1750230387462,0.03811519,104940.0,104930.0,0.23847611]
[1750230387709,0.21917185,104940.0,104930.0,0.20035721]
[1750230387957,0.21917185,104940.0,104930.0,0.21811655]
[1750230387958,0.29542405,104940.0,104930.0,0.21811655]
[1750230388195,0.39157327,104940.0,104930.0,0.22764662]
[1750230388410,0.39357327,104940.0,104930.0,0.23717651]
[1750230388642,0.38404456,104940.0,104930.0,0.23717651]
[1750230388890,5.5930899,104940.0,104930.0,0.01998361]
[1750230389120,9.73222167,104940.0,104930.0,0.00222418]
[1750230389348,9.73222167,104940.0,104920.0,0.22867579]
[1750230389349,9.34432749,104920.0,104910.0,0.33415379]
[1750230389575,0.02694946,104910.0,104900.0,0.23925119]
[1750230389800,0.03648134,104910.0,104900.0,0.25698804]
[1750230390020,5.07669393,104910.0,104900.0,0.23792327]
[1750230390248,5.06716277,104910.0,104900.0,0.22839057]
[1750230390469,5.38974447,104910.0,104900.0,0.03773604]
[1750230390689,5.48053403,104910.0,104900.0,0.03773604]
[1750230390905,5.48053403,104910.0,104900.0,0.04726892]
[1750230391127,5.20911038,104910.0,104900.0,0.23925559]
[1750230391346,5.56600194,104910.0,104900.0,0.22972325]
[1750230391811,0.34047389,104910.0,104900.0,0.42357045]
[1750230392037,0.00047389,104910.0,104900.0,0.6912618]
[1750230392507,0.00447389,104910.0,104900.0,0.7317018]
[1750230392759,0.00147389,104910.0,104900.0,0.7317018]
[1750230392979,0.01953666,104910.0,104900.0,0.4817018]
[1750230393207,0.08694354,104910.0,104900.0,0.35296004]
[1750230393394,0.23421184,104910.0,104900.0,0.35296004]
[1750230393650,0.22468032,104910.0,104900.0,0.31252004]
[1750230393877,0.23421184,104910.0,104900.0,0.28100518]
[1750230394145,0.24474336,104910.0,104900.0,0.28100518]
[1750230394396,0.22668032,104910.0,104900.0,0.28200518]
[1750230394609,0.22672032,104910.0,104900.0,0.26746433]
[1750230394842,0.58578363,104910.0,104900.0,0.26746425]
[1750230395096,0.86220739,104910.0,104900.0,0.24839966]
[1750230395319,4.98836914,104910.0,104900.0,0.26677069]
[1750230395514,4.98836914,104910.0,104900.0,0.24909428]
[1750230395766,4.76913427,104910.0,104900.0,0.26815905]
[1750230395980,4.79772892,104910.0,104900.0,0.26815842]
[1750230396194,4.79772892,104910.0,104900.0,0.25931991]
[1750230396415,4.81679277,104910.0,104900.0,0.25931991]
[1750230396993,4.77866561,104910.0,104900.0,0.25931991]
[1750230397262,4.64461805,104910.0,104900.0,0.28941991]
[1750230397511,4.63504689,104910.0,104900.0,0.28941991]
[1750230397756,4.64457805,104910.0,104900.0,0.28941991]
[1750230397987,4.65410948,104910.0,104900.0,0.28941991]
[1750230398197,4.7502587,104910.0,104900.0,0.28941991]
[1750230398426,4.74072727,104910.0,104900.0,0.28941991]
[1750230398644,4.75025861,104910.0,104900.0,0.28941991]
[1750230398860,4.73119611,104910.0,104900.0,0.28941991]
[1750230399122,0.34251389,104910.0,104900.0,0.41260252]
[1750230399334,0.34251389,104910.0,104900.0,0.43025747]
[1750230400447,0.00251389,104910.0,104900.0,0.68025747]
[1750230401318,0.00251389,104910.0,104900.0,0.87745747]
[1750230402245,0.00151389,104910.0,104900.0,0.85880252]
[1750230403363,0.00051389,104910.0,104900.0,0.85880252]
[1750230403589,0.00151389,104910.0,104900.0,0.86080252]
[1750230403816,0.00251389,104910.0,104900.0,0.86080252]
[1750230407524,0.00251389,104910.0,104900.0,1.01080252]
[1750230409762,0.00251389,104910.0,104900.0,1.01060252]
[1750230412339,0.00251389,104910.0,104900.0,1.01048252]
[1750230415523,0.00251389,104910.0,104900.0,0.85404252]
[1750230415784,0.00251389,104910.0,104900.0,1.01084252]
[1750230416159,0.00251389,104910.0,104900.0,0.81360252]
[1750230416595,0.00251389,104910.0,104900.0,1.01116252]
[1750230422035,0.00251389,104910.0,104900.0,1.22718165]
[1750230422267,0.00251389,104910.0,104900.0,1.01116252]
[1750230423665,0.00251389,104910.0,104900.0,1.24004252]
[1750230424964,0.00251389,104910.0,104900.0,1.65606165]
[1750230425185,0.0762922,104940.0,104930.0,0.54623348]
[1750230425405,0.0762922,104940.0,104930.0,0.83995524]
[1750230426488,0.0772922,104940.0,104930.0,0.84095524]
[1750230426918,0.00104,104940.0,104930.0,0.84095524]
[1750230427798,0.00104,104940.0,104930.0,1.05697437]
[1750230428033,0.00104,104940.0,104930.0,1.10697437]
[1750230428467,0.00104,104940.0,104930.0,1.10797437]
[1750230428676,0.00104,104940.0,104930.0,0.89195524]
[1750230428932,0.00104,104940.0,104930.0,0.89095524]
[1750230429356,0.00204,104940.0,104930.0,0.64295524]
[1750230429579,0.00104,104940.0,104930.0,0.64195524]
[1750230429847,0.00104,104940.0,104930.0,0.64447524]
[1750230430061,0.00204,104940.0,104930.0,0.84403524]
[1750230430502,0.00204,104940.0,104930.0,1.06005437]
[1750230430958,0.00204,104940.0,104930.0,0.89403524]
[1750230431435,0.00204,104940.0,104930.0,0.84403524]
[1750230431646,0.00204,104940.0,104930.0,0.64647524]
[1750230431863,0.00204,104940.0,104930.0,0.84411524]
[1750230432569,0.00204,104940.0,104930.0,1.13521524]
[1750230434496,0.00204,104940.0,104930.0,1.13517524]
[1750230435237,0.00204,104940.0,104930.0,1.10263524]
[1750230435678,0.00204,104940.0,104930.0,0.69583524]
[1750230435893,0.00204,104940.0,104930.0,0.61019439]
[1750230436103,0.08300639,104940.0,104930.0,0.62473524]
[1750230436332,0.08366986,104940.0,104930.0,0.78153524]
[1750230436555,0.06774,104940.0,104930.0,0.58397524]
[1750230436792,0.40774,104940.0,104930.0,0.78153524]
[1750230437932,0.40774,104940.0,104930.0,0.55990487]
[1750230437936,0.44585482,104940.0,104930.0,0.46366311]
[1750230438165,0.52760856,104940.0,104930.0,0.50442293]
[1750230438398,0.52760856,104940.0,104930.0,0.51896378]
[1750230438619,0.70866522,104940.0,104930.0,0.51896378]
[1750230438860,0.6991367,104940.0,104930.0,0.31883101]
[1750230439117,0.70472432,104940.0,104930.0,0.26854085]
[1750230439340,0.70472432,104940.0,104930.0,0.30930085]
[1750230439564,4.83088825,104940.0,104930.0,0.30930085]
[1750230439784,4.82888825,104940.0,104930.0,0.29076]
[1750230440010,4.83288825,104940.0,104930.0,0.29176]
[1750230440251,9.77870301,104940.0,104930.0,0.001]
[1750230440476,9.85313683,104940.0,104930.0,0.001]
[1750230440698,0.44102644,104910.0,104900.0,0.26010373]
[1750230440924,0.43149456,104910.0,104900.0,0.36587774]
[1750230441380,0.44102644,104910.0,104900.0,0.36587774]
[1750230441855,0.44102644,104910.0,104900.0,0.52283774]
[1750230442077,0.44102626,104910.0,104900.0,0.52283774]
[1750230442289,0.43149447,104910.0,104900.0,0.53737859]
[1750230442513,0.44102626,104910.0,104900.0,0.53737859]
[1750230442745,0.50419214,104910.0,104900.0,0.53737859]
[1750230443214,0.49566035,104910.0,104900.0,0.5248931]
[1750230443661,0.49766035,104910.0,104900.0,0.5248931]
[1750230443888,0.50719214,104910.0,104900.0,0.5248931]
[1750230444114,0.48812865,104910.0,104900.0,0.5248931]
[1750230444572,0.41543125,104910.0,104900.0,0.5248931]
[1750230444793,0.42496268,104910.0,104900.0,0.5248931]
[1750230445030,0.41543125,104910.0,104900.0,0.5248931]
[1750230445779,0.003,104910.0,104900.0,0.5248931]
[1750230446707,0.003,104910.0,104900.0,0.5252131]
[1750230446921,0.0359,104910.0,104900.0,0.5252131]
[1750230447149,0.0908065,104910.0,104900.0,0.5252131]
[1750230447599,0.09080659,104910.0,104900.0,0.3682531]
[1750230447856,0.10033802,104910.0,104900.0,0.5252131]
[1750230448139,0.13163802,104910.0,104900.0,0.5252131]
[1750230448600,0.13167793,104910.0,104900.0,0.5252131]
[1750230448844,0.03594,104910.0,104900.0,0.5252131]
[1750230449086,0.00304,104910.0,104900.0,0.5252131]
[1750230449317,0.00304,104910.0,104900.0,0.5252531]
[1750230449966,0.00304,104910.0,104900.0,0.3271731]
[1750230450187,0.07627134,104910.0,104900.0,0.5252931]
[1750230450423,0.1398199,104910.0,104900.0,0.5252931]
[1750230450651,0.14935133,104910.0,104900.0,0.5252931]
[1750230450869,0.1398199,104910.0,104900.0,0.5252531]
[1750230451755,0.13981981,104910.0,104900.0,0.5252531]
[1750230452007,0.13981981,104910.0,104900.0,0.3271731]
[1750230452230,0.14935124,104910.0,104900.0,0.5252931]
[1750230452450,0.13981981,104910.0,104900.0,0.5252931]
[1750230452899,0.14935124,104910.0,104900.0,0.5252931]
[1750230453132,0.13981981,104910.0,104900.0,0.5252931]
[1750230453421,0.14935124,104910.0,104900.0,0.5252931]
[1750230454086,0.14935124,104910.0,104900.0,0.5252131]
[1750230454327,0.14935124,104910.0,104900.0,0.3271731]
[1750230454570,0.14935124,104910.0,104900.0,0.5252131]
[1750230454803,0.16841455,104910.0,104900.0,0.5251731]
[1750230455497,0.17794697,104910.0,104900.0,0.23093134]
[1750230455972,0.42577572,104910.0,104900.0,0.25014105]
[1750230456196,0.41624402,104910.0,104900.0,0.20906114]
[1750230456422,0.40671223,104910.0,104900.0,0.25014114]
[1750230456646,0.40671223,104910.0,104900.0,0.26920627]
[1750230457370,0.40671223,104910.0,104900.0,0.25014114]
[1750230457816,0.39718035,104910.0,104900.0,0.05061279]
[1750230458293,0.39718035,104910.0,104900.0,0.24127055]
[1750230458569,0.39718035,104910.0,104900.0,0.26986838]
[1750230459020,0.42577563,104910.0,104900.0,0.27940081]
[1750230459237,0.13981981,104910.0,104900.0,0.27940081]
[1750230459458,0.08580277,104910.0,104900.0,0.27940027]
[1750230459903,0.06674,104910.0,104900.0,0.27940027]
[1750230460138,0.07627116,104910.0,104900.0,0.27940027]
[1750230460374,0.08580259,104910.0,104900.0,0.27940027]
[1750230460595,0.13981986,104910.0,104900.0,0.27940027]
[1750230461349,0.1493512,104910.0,104900.0,0.27940027]
[1750230462462,0.13981986,104910.0,104900.0,0.27940027]
[1750230462678,0.1493512,104910.0,104900.0,0.27940027]
[1750230463558,0.15888272,104910.0,104900.0,0.27940027]
[1750230463782,5.00845572,104910.0,104900.0,0.27940027]
[1750230464001,5.00845572,104910.0,104900.0,0.22878802]
[1750230464223,5.00845572,104910.0,104900.0,0.27940027]
[1750230464930,5.00845572,104910.0,104900.0,0.23832027]
[1750230465193,5.00845572,104910.0,104900.0,0.27944027]
[1750230466118,0.03594,104910.0,104900.0,0.27944027]
[1750230467754,0.00304,104910.0,104900.0,0.27944027]
[1750230468194,0.01257116,104910.0,104900.0,0.27944027]
[1750230468423,0.00304,104910.0,104900.0,0.27944027]
[1750230468650,0.03564,104910.0,104900.0,0.27944027]
[1750230470667,0.00304,104910.0,104900.0,0.39022288]
[1750230471120,0.00304,104910.0,104900.0,0.42282288]
[1750230472510,0.00304,104910.0,104900.0,0.39022288]
[1750230474292,0.01257116,104910.0,104900.0,0.39022288]
[1750230474509,0.11072566,104910.0,104900.0,0.39022288]
[1750230475198,0.12025691,104910.0,104900.0,0.39022288]
[1750230475826,0.12978834,104910.0,104900.0,0.39022288]
[1750230476039,0.12025691,104910.0,104900.0,0.39022288]
[1750230476771,0.12978825,104910.0,104900.0,0.39022288]
[1750230477004,0.12025691,104910.0,104900.0,0.39022288]
[1750230477227,0.12978834,104910.0,104900.0,0.39022288]
[1750230477458,0.17111986,104910.0,104900.0,0.27972027]
[1750230477897,0.18065147,104910.0,104900.0,0.27972027]
[1750230478114,0.17111986,104910.0,104900.0,0.27972027]
[1750230478543,0.18065156,104910.0,104900.0,0.27972027]
[1750230478789,0.17111986,104910.0,104900.0,0.27972027]
[1750230479003,0.09573384,104910.0,104900.0,0.27972027]
[1750230479222,0.10526554,104910.0,104900.0,0.27972027]
[1750230480173,0.09573384,104910.0,104900.0,0.27972027]
[1750230480403,0.10526536,104910.0,104900.0,0.27972027]
[1750230480610,0.10526545,104910.0,104900.0,0.27972027]
[1750230480831,0.18965208,104910.0,104900.0,0.27972027]
[1750230481045,0.19918387,104910.0,104900.0,0.27972027]
[1750230481266,0.18965208,104910.0,104900.0,0.27972027]
[1750230481482,0.19918387,104910.0,104900.0,0.27972027]
[1750230481721,0.52965262,104910.0,104900.0,0.27972027]
[1750230481941,0.56174369,104910.0,104900.0,0.27972027]
[1750230482169,0.5522119,104910.0,104900.0,0.27972027]
[1750230482385,0.5426802,104910.0,104900.0,0.27972027]
[1750230482882,0.53314859,104910.0,104900.0,0.27972027]
[1750230483108,0.40743044,104910.0,104900.0,0.27972027]
[1750230483781,0.36559928,104910.0,104900.0,0.27972027]
[1750230484293,0.38466169,104910.0,104900.0,0.27972027]
[1750230484523,0.42579321,104910.0,104900.0,0.27972027]
[1750230484750,0.5206465,104910.0,104900.0,0.27972027]
[1750230484971,0.50158328,104910.0,104900.0,0.43744027]
[1750230485214,0.52064632,104910.0,104900.0,0.43744027]
[1750230485702,0.51111471,104910.0,104900.0,0.43744027]
[1750230485940,0.69322413,104910.0,104900.0,0.20972307]
[1750230486178,5.74322413,104910.0,104900.0,0.2606555]
[1750230486650,5.77322413,104910.0,104900.0,0.2606555]
[1750230487121,5.77322413,104910.0,104900.0,0.2192555]
[1750230487341,5.77322413,104910.0,104900.0,0.27018784]
[1750230487818,5.77322413,104910.0,104900.0,0.22878784]
[1750230488059,5.77322413,104910.0,104900.0,0.25112307]
[1750230488301,5.48773044,104910.0,104900.0,0.26065532]
[1750230488530,5.50679339,104910.0,104900.0,0.26065532]
[1750230488770,5.51632518,104910.0,104900.0,0.26065532]
[1750230489006,5.51632527,104910.0,104900.0,0.25112307]
[1750230489231,5.52585724,104910.0,104900.0,0.2606555]
[1750230489457,5.62200646,104910.0,104900.0,0.27018784]
[1750230489676,5.61247449,104910.0,104900.0,0.27972009]
[1750230489900,5.77079449,104910.0,104900.0,0.27972009]
[1750230490134,5.61247449,104910.0,104900.0,0.27972009]
[1750230490386,5.96143408,104910.0,104900.0,0.25112316]
[1750230490675,5.97096605,104910.0,104900.0,0.26065559]
[1750230490907,5.97096605,104910.0,104900.0,0.27018793]
[1750230491133,5.96143489,104910.0,104900.0,0.27018793]
[1750230491605,5.7707953,104910.0,104900.0,0.27018793]
[1750230491833,5.7707953,104910.0,104900.0,0.27972018]
[1750230492507,5.7707953,104910.0,104900.0,0.23832018]
[1750230492726,5.7707953,104910.0,104900.0,0.27972018]
[1750230493217,5.96143489,104910.0,104900.0,0.26065559]
[1750230493450,5.95190355,104910.0,104900.0,0.25112316]
[1750230494289,11.00190355,104910.0,104900.0,0.26065568]
[1750230495092,11.00190355,104910.0,104900.0,0.27018811]
[1750230495297,11.00078355,104910.0,104900.0,0.26065568]
[1750230495847,0.0190645,104900.0,104890.0,0.46599469]
[1750230496087,0.06149693,104900.0,104890.0,0.51740219]
[1750230496728,0.07102963,104900.0,104890.0,0.51740219]
[1750230496948,0.03812963,104900.0,104890.0,0.51740219]
[1750230497190,0.31681916,104900.0,104890.0,0.50786903]
[1750230497421,0.1572614,104900.0,104890.0,0.51740219]
[1750230498121,0.1582614,104900.0,104890.0,0.51940219]
[1750230498383,0.07022954,104900.0,104890.0,0.51940219]
[1750230498612,0.002,104900.0,104890.0,0.52040219]
[1750230498841,0.002,104900.0,104890.0,0.51940219]
[1750230499086,0.001,104900.0,104890.0,0.58170219]
[1750230499322,0.003,104900.0,104890.0,0.58270219]
[1750230500248,0.003,104900.0,104890.0,0.74154219]
[1750230501177,0.003,104900.0,104890.0,0.8523248]
[1750230504500,0.003,104900.0,104890.0,0.8473248]
[1750230506640,0.003,104900.0,104890.0,0.6884848]
[1750230506874,0.003,104900.0,104890.0,0.41521799]
[1750230507092,0.0337,104900.0,104890.0,0.54259799]
[1750230507312,0.003,104900.0,104890.0,0.54259799]
[1750230508974,0.003,104900.0,104890.0,0.54351799]
[1750230510067,0.003,104900.0,104890.0,0.38455799]
[1750230510298,0.003,104900.0,104890.0,0.54351799]
[1750230511874,0.003,104900.0,104890.0,0.57611799]
[1750230512359,0.003,104900.0,104890.0,0.37491799]
[1750230512588,10.71552307,104900.0,104890.0,0.01232009]
[1750230512811,10.89086036,104900.0,104890.0,0.01232009]
[1750230513034,10.89086036,104900.0,104890.0,0.02126006]
[1750230513250,10.89086036,104900.0,104890.0,0.01232009]
[1750230513470,10.87832775,104900.0,104890.0,0.01232009]
[1750230513684,10.87832775,104900.0,104890.0,0.01132009]
[1750230513904,10.88232775,104900.0,104890.0,0.01132009]
[1750230514123,10.88432775,104900.0,104890.0,0.02126018]
[1750230514339,10.85638844,104900.0,104890.0,0.02126018]
[1750230514558,10.51638844,104900.0,104890.0,0.02126018]
[1750230515254,10.51638844,104900.0,104890.0,0.01232009]
[1750230515909,10.51638844,104900.0,104890.0,0.02124861]
[1750230516609,10.85638844,104900.0,104890.0,0.01232009]
[1750230519235,10.85638844,104900.0,104890.0,0.02124434]
[1750230520585,10.85638844,104900.0,104890.0,0.02124447]
[1750230521870,10.88451657,104900.0,104890.0,0.02124447]
[1750230523402,10.98075833,104900.0,104890.0,0.01232009]
[1750230524488,0.58026289,104880.0,104870.0,0.05264326]
[1750230524711,0.84655834,104880.0,104870.0,0.06156424]
[1750230524933,0.83702409,104880.0,104870.0,0.06156424]
[1750230525156,0.83702409,104880.0,104870.0,0.07109985]
[1750230525367,0.83702409,104880.0,104870.0,0.01040326]
[1750230526673,0.83702409,104880.0,104870.0,0.21065118]
[1750230526876,0.80652409,104880.0,104870.0,0.22018661]
[1750230527084,0.80952409,104880.0,104870.0,0.22018661]
[1750230527294,0.81052409,104880.0,104870.0,0.22118661]
[1750230527525,0.81052409,104880.0,104870.0,0.21165118]
[1750230528191,0.81052409,104880.0,104870.0,0.2211867]
[1750230528643,0.84372409,104880.0,104870.0,0.01140326]
[1750230528858,10.93418957,104880.0,104870.0,0.02032217]
[1750230529514,10.93418957,104880.0,104870.0,0.01140326]
[1750230529723,10.93418957,104880.0,104870.0,0.02031989]
[1750230530146,10.96283957,104880.0,104870.0,0.02031992]
[1750230530407,11.05908133,104880.0,104870.0,0.02031992]
[1750230530632,11.08160854,104880.0,104870.0,0.02031992]
[1750230531941,11.08160854,104880.0,104870.0,0.02032096]
[1750230533228,11.08160854,104880.0,104870.0,0.01932096]
[1750230533229,11.08060854,104880.0,104870.0,0.01932096]
[1750230533454,10.7122029,104860.0,104850.0,0.01080069]
[1750230533669,11.06371388,104860.0,104850.0,0.01080069]
[1750230533884,11.08622674,104860.0,104850.0,0.01080069]
[1750230534104,11.11488374,104860.0,104850.0,0.01080069]
[1750230534563,11.16488374,104860.0,104850.0,0.00125871]
[1750230534776,11.24723424,104860.0,104850.0,0.00125871]
[1750230534987,10.4590775,104830.0,104820.0,0.22896095]
[1750230535204,10.63843573,104830.0,104820.0,0.22896113]
[1750230535569,10.73787981,104830.0,104820.0,0.20988163]
[1750230535663,10.95776273,104830.0,104820.0,0.20988163]
[1750230535880,10.95776273,104830.0,104820.0,0.20988172]
[1750230536101,10.94822384,104830.0,104820.0,0.20988172]
[1750230536329,11.00128486,104830.0,104820.0,0.20034335]
[1750230536557,0.02861948,104820.0,104810.0,0.21931764]
[1750230536791,5.36879326,104820.0,104810.0,0.20977776]
[1750230537002,5.15890993,104820.0,104810.0,0.22885871]
[1750230537242,0.00954034,104810.0,104800.0,0.53502897]
[1750230537460,0.00954034,104810.0,104800.0,0.57637059]
[1750230537680,5.57902003,104820.0,104810.0,0.20990298]
[1750230537905,5.57949339,104820.0,104810.0,0.20990298]
[1750230538169,5.57949339,104820.0,104810.0,0.2194435]
[1750230538389,5.66710236,104820.0,104810.0,0.22898393]
[1750230538602,5.6671019,104820.0,104810.0,0.22898393]
[1750230539057,5.58149247,104820.0,104810.0,0.22998393]
[1750230539281,5.58149256,104820.0,104810.0,0.22998393]
[1750230539531,5.58149256,104820.0,104810.0,0.2204435]
[1750230539761,5.59103263,104820.0,104810.0,0.2204435]
[1750230540208,5.59103263,104820.0,104810.0,0.21090298]
[1750230540440,5.48862258,104820.0,104810.0,0.22044341]
[1750230540670,5.39247336,104820.0,104810.0,0.28664341]
[1750230540902,5.55299336,104820.0,104810.0,0.28664341]
[1750230541115,0.50299336,104820.0,104810.0,0.28664341]
[1750230541629,0.34247336,104820.0,104810.0,0.30118426]
[1750230541862,0.34247336,104820.0,104810.0,0.39742602]
[1750230542540,0.35125477,104820.0,104810.0,0.32938874]
[1750230542768,0.35125477,104820.0,104810.0,0.20660454]
[1750230543047,0.35125477,104820.0,104810.0,0.19606393]
[1750230543302,0.35125477,104820.0,104810.0,0.53032869]
[1750230543304,0.01125524,104820.0,104810.0,0.53032869]